Cogmind - Beta 15 @@@ ROGUE MODE // 2025.09.16 @ 17:56:23 Player: TapeIsSticky Result: Destroyed by B4-7JF(E) with Gauss Rifle Performance ------------- Evolutions (0) 0 Regions Visited (3) 600 Robots Destroyed (36) 180 Value Destroyed (728) 728 Prototype IDs (6) 120 Alien Tech Used (0) 0 Bonus (300) 300 TOTAL SCORE: 1928 Bonus ------- Registered with UFD 300 Cogmind --------- Core Integrity 0/250 Matter 300/300 Energy 78/100 System Corruption 2% Temperature Cool (0) Movement Core (50) Location -9/Scraptown Parts ------- > --- POWER (1) -------- (None) > --- PROPULSION (2) --- (None) > --- UTILITY (2) ------ (None) > --- WEAPON (2) ------- (None) > --- INVENTORY (5) ---- Subdweller Beam Cannon Powered Cannon Large Botcube Peak State ------------ > --- POWER ------------ Ion Engine > --- PROPULSION ------- Light Treads Light Treads > --- UTILITY ---------- Huge Storage Unit Seismic Detector > --- WEAPON ----------- Subdweller Machine Gun Battle Cannon > --- INVENTORY -------- Subdweller Power Source Subdweller Monowheel Subdweller Monowheel Subdweller Monowheel High-capacity Matter Pod Subdweller Optics Subdweller Optics Subdweller Optics Subdweller Optics Seismic Detector Light Armor Plating Subdweller Beam Cannon Powered Cannon Assault Rifle Assault Rifle Assault Rifle Battle Rifle Battle Rifle Battle Rifle Subdweller Machine Gun Subdweller Machine Gun DRS Beacon Large Botcube [Rating: 16] Favorites ----------- Power Ion Engine Engine Ion Engine Propulsion Light Treads Treads Light Treads Utility Seismic Detector Device Seismic Detector Storage Huge Storage Unit Protection Light Armor Plating Weapon Subdweller Machine Gun Ballistic Gun Subdweller Machine Gun Ballistic Cannon Battle Cannon Build | -11 -10 -10 -9 ------- Run | Yrd Mat Sub Scr Slots Evolved . | . . . . Power . | . . . . Propulsion . | . . . . Utility . | . . . . Weapon . | . . . . Parts Attached 23 | 7 4 10 2 Power 2 | 1 1 . . Engine 2 | 1 1 . . Core . | . . . . Reactor . | . . . . Propulsion 4 | 2 . 2 . Treads 4 | 2 . 2 . Leg . | . . . . Wheel . | . . . . Hover . | . . . . Flight . | . . . . Utility 7 | 2 1 3 1 Device 2 | 1 . 1 . Storage 3 | 1 1 1 . Processor . | . . . . Hackware . | . . . . Protection 2 | . . 1 1 Artifact . | . . . . Weapon 10 | 2 2 5 1 Energy Gun . | . . . . Energy Cannon . | . . . . Ballistic Gun 7 | 2 2 2 1 Ballistic Cannon 3 | . . 3 . Launcher . | . . . . Special Weapon . | . . . . Impact Weapon . | . . . . Slashing Weapon . | . . . . Piercing Weapon . | . . . . Special Melee Weapon . | . . . . Unidentified Prototypes . | . . . . Parts Lost 4 | . . 4 . Power . | . . . . Propulsion 2 | . . 2 . Utility . | . . . . Weapon 2 | . . 2 . Highest Loss Streak 2 | . . 2 . To Critical Strikes . | . . . . Average Backups 16 | 2 9 18 20 Power . | . . . . Propulsion 2 | . 1 3 2 Utility 5 | . 4 5 6 Weapon 7 | . 2 7 10 Tool/Special . | . . . . Unused Backups 21 | . 3 . 18 Power 1 | . . . 1 Propulsion 4 | . 1 . 3 Utility 6 | . 1 . 5 Weapon 9 | . 1 . 8 Tool/Special 1 | . . . 1 Average Slot Usage (%) 99 | . 99 100 99 Engine 13 | . 14 14 13 Treads 27 | . 27 28 27 Device 10 | . 14 7 13 Storage 13 | . 14 14 13 Protection 3 | . . 6 . Ballistic Gun 17 | . 28 14 14 Ballistic Cannon 10 | . . 13 13 Peak Build Rating 16 | 7 8 14 16 Average Rating 11 | 5 7 11 15 On Entrance 7 | . 7 8 13 Naked Turns 7 | . . . 7 Heaviest Build 96 | 14 20 96 93 Greatest Support 40 | 40 40 40 40 Greatest Overweight (x) 6 | . 6 2 2 Average Overweight (x) 1 | . . 1 1 Largest Inventory Capacity 25 | 8 10 25 25 Average Capacity 19 | 7 9 21 24 Most Carried 25 | 4 10 24 25 Average Carried 17 | 2 9 18 23 Final Capacity 25 | 8 10 25 5 Final Carried 22 | 4 10 22 5 Class Distribution -------------------- 100% | Mutant Dominant Class ---------------- Mutant | -10/Materials Mutant | -10/Subcaves Mutant | -9/Scraptown Resources | -11 -10 -10 -9 ----------- Run | Yrd Mat Sub Scr Matter Collected 1589 | 370 673 506 40 Remotely . | . . . . Salvage Created 1104 | 159 595 350 . Parts 98 | 16 48 34 . Haulers Intercepted 2 | . 2 . . Recyclers Shooed 2 | 1 1 . . Parts Field Recycled . | . . . . Retrieved Matter . | . . . . Parts Self-Destructed 15 | . . 15 . Prevented . | . . . . Kills | -11 -10 -10 -9 ------- Run | Yrd Mat Sub Scr Combat Hostiles Destroyed 24 | . 13 11 . Guns 22 | . 13 9 . Cannons 2 | . . 2 . Classes Destroyed 10 | 3 5 2 . Worker 1 | 1 . . . Builder 1 | . 1 . . Tunneler 4 | 3 1 . . Hauler 2 | . 2 . . Recycler 1 | 1 . . . Watcher 3 | . 3 . . Swarmer 10 | . 6 4 . Grunt 7 | . 7 . . Sentry 1 | . . 1 . Subdweller 6 | . . 6 . Best Kill Streak 4 | 1 4 3 . Combat Bots Only 3 | . 3 3 . Max Kills in Single Turn 1 | 1 1 1 . Gunslinging . | . . . . Exploded . | . . . . Melee . | . . . . Uniques/NPCs Destroyed . | . . . . Combat | -11 -10 -10 -9 -------- Run | Yrd Mat Sub Scr Hostile Shots Fired 137 | . 74 59 4 Missed 31 | . 17 12 2 Hits 106 | . 57 47 2 Projectile 106 | . 57 47 2 Critical Strikes 4 | . 1 1 2 Damage Taken 1367 | . 575 699 93 Core 256 | . 73 90 93 Absorbed by Shields . | . . . . Regen/Repaired (Parts) 223 | . 223 . . Core Remaining (%) 100 | 100 . . . Volleys Fired 149 | 25 64 60 . Largest 2 | 2 2 2 . Hottest 63 | 40 40 63 . Shots Fired 293 | 50 128 115 . Gun 214 | 50 128 36 . Cannon 79 | . . 79 . Launcher . | . . . . Special . | . . . . Kinetic 293 | 50 128 115 . Thermal . | . . . . Explosive . | . . . . Electromagnetic . | . . . . Robot Hit Streak 15 | 3 15 15 . Robot Miss Streak 5 | 3 3 5 . Penetration Max . | . . . . Secondary Targets 6 | . 5 1 . Max Gunslinging Chain 1 | . 1 1 . Shots Hit Robots 151 | 24 87 40 . Core Hits 57 | 6 33 18 . Critical Kills . | . . . . Critical Parts Destroyed 2 | . 1 1 . Critical Strikes 2 | . 1 1 . Destroy 2 | . 1 1 . Melee Attacks . | . . . . Impact . | . . . . Slashing . | . . . . Piercing . | . . . . Sneak Attacks . | . . . . Combat Hostiles . | . . . . Follow-up Attacks . | . . . . Damage Inflicted 2052 | 245 1049 728 30 Guns 1742 | 245 1024 473 . Cannons 255 | . . 255 . Explosions . | . . . . Melee . | . . . . Ramming 55 | . 25 . 30 Kinetic 1997 | 245 1024 728 . Thermal . | . . . . Explosive . | . . . . Electromagnetic . | . . . . Impact . | . . . . Slashing . | . . . . Piercing . | . . . . Highest Corruption 2 | . . . 2 Average Corruption 2 | . . . 2 Corruption Purged . | . . . . Corruption Blocked . | . . . . Overload Shots . | . . . . Overflow Damage . | . . . . Projectiles . | . . . . Explosions . | . . . . Melee . | . . . . Knockbacks 5 | . . 5 . Impact . | . . . . Kinetic 5 | . . 5 . Secondary . | . . . . Self-Inflicted Damage 30 | . . . 30 Shots . | . . . . Rammed 8 | . 8 . . Targets Rammed 8 | . 8 . . Kicked . | . . . . Crushed . | . . . . Highest Temperature 12 | . 12 8 . Average Temperature 6 | . 6 8 . Received Heat Transfer 231 | . 168 63 . Siege Activations . | . . . . Martial Activations . | . . . . Shielding Activations . | . . . . Robots Disrupted . | . . . . Combat Hostiles . | . . . . Robots Corrupted . | . . . . Combat Hostiles . | . . . . Parts Fried . | . . . . Impact Corruptions . | . . . . Robots Melted . | . . . . Combat Hostiles . | . . . . Parts Melted . | . . . . Heat Transferred . | . . . . Parts Sabotaged . | . . . . Parts Stolen . | . . . . Parts Stripped . | . . . . Power Chain Reactions . | . . . . Alert | -11 -10 -10 -9 ------- Run | Yrd Mat Sub Scr Maximum Alert Level . | . . . . Low Security (%) 100 | 100 100 . . Level 1 . | . . . . Level 2 . | . . . . Level 3 . | . . . . Level 4 . | . . . . Level 5 . | . . . . High Security . | . . . . Max Security . | . . . . Peak Influence 145 | 5 145 . . Initial . | . . . . Average 37 | . 41 . . Influence Increases 542 | 25 392 125 . Destroy 0b10 Robot/C 360 | . 260 100 . Destroy 0b10 Robot/NC 60 | 25 35 . . Destroy Leader 70 | . 60 10 . Successful Hack 37 | . 37 . . Lose Combat Pursuer 15 | . . 15 . Influence Decreases 542 | 25 327 184 6 Entered New Map 38 | . . 32 6 Time Decay 504 | 25 327 152 . Squads Dispatched 4 | . 4 . . Investigation 2 | . 2 . . Extermination . | . . . . Reinforcement 2 | . 2 . . Assault . | . . . . Garrison . | . . . . Intercept . | . . . . Searches Triggered . | . . . . Construction Impeded . | . . . . Haulers Reinforced . | . . . . Active Scanning Responses . | . . . . Cargo Convoy Interrupts . | . . . . Stealth | -11 -10 -10 -9 --------- Run | Yrd Mat Sub Scr Distress Signals 3 | . 3 . . Communications Jammed . | . . . . Distress Signals . | . . . . Times Spotted 44 | . 24 12 8 Peak Tracking Total 10 | . 3 3 10 Tactical Retreats 1 | . . 1 . Traps | -11 -10 -10 -9 ------- Run | Yrd Mat Sub Scr Traps Triggered 4 | . 4 . . Indirectly . | . . . . Trap Hack Attempts . | . . . . Triggered . | . . . . Disarmed . | . . . . Reprogrammed . | . . . . Reused . | . . . . Traps Extracted . | . . . . Installed . | . . . . Triggered . | . . . . Machines | -11 -10 -10 -9 ---------- Run | Yrd Mat Sub Scr Machines Disabled 1 | . . . 1 Max in Single Turn 1 | . . . 1 Machines Repaired . | . . . . Machines Dismantled . | . . . . Machines Sabotaged . | . . . . Overloaded Fab Kills . | . . . . Hacking | -11 -10 -10 -9 --------- Run | Yrd Mat Sub Scr Machines Accessed 12 | . 10 . 2 Terminals 7 | . 7 . . Fabricators . | . . . . Repair Stations 1 | . 1 . . Recycling Units 2 | . 2 . . Scanalyzers . | . . . . Garrison Access . | . . . . Total Hacks 42 | . 36 . 6 Successful 27 | . 21 . 6 Failed 14 | . 14 . . Catastrophic 2 | . 2 . . Database Lockouts 1 | . 1 . . Manual 27 | . 27 . . Terminals 29 | . 29 . . Fabricators . | . . . . Repair Stations 4 | . 4 . . Recycling Units 3 | . 3 . . Scanalyzers . | . . . . Garrison Access . | . . . . Terminal Hacks 14 | . 8 . 6 Robot Analysis 11 | . 6 . 5 Recall Investigation 1 | . 1 . . Recall Reinforcements 1 | . 1 . . Proto ID Catalog 1 | . . . 1 Fabricator Hacks . | . . . . Repair Station Hacks 4 | . 4 . . Scan Component 2 | . 2 . . Repair 2 | . 2 . . Recycling Unit Hacks 1 | . 1 . . Retrieve Components 1 | . 1 . . Scanalyzer . | . . . . Garrison Access Hacks . | . . . . Unauthorized Hacks 8 | . 8 . . Terminals 8 | . 8 . . Assimilate 1 | . 1 . . Botnet 2 | . 2 . . Skim 5 | . 5 . . Fabricators . | . . . . Repair Stations . | . . . . Recycling Units . | . . . . Scanalyzers . | . . . . Garrison Access . | . . . . Data Cores Recovered . | . . . . Used . | . . . . Hacking Detections 8 | . 8 . . Full Trace Events 1 | . 1 . . Feedback Events . | . . . . Feedback Blocked . | . . . . Robot Schematics Acquired . | . . . . Robots Built . | . . . . Authchips . | . . . . Time . | . . . . Total Robot Build Rating . | . . . . Part Schematics Acquired . | . . . . Parts Built . | . . . . Authchips . | . . . . Time . | . . . . Total Part Build Rating . | . . . . Parts Repaired 2 | . 2 . . Time 52 | . 52 . . Parts Recycled . | . . . . Recycled Matter . | . . . . Retrieved Matter . | . . . . Retrieved Components 7 | . 7 . . Parts Scanalyzed . | . . . . Part Schematics Acquired . | . . . . Parts Damaged . | . . . . Bothacking | -11 -10 -10 -9 ------------ Run | Yrd Mat Sub Scr Used RIF Installer . | . . . . Robots Hacked . | . . . . Non-combat . | . . . . Combat . | . . . . Robot Hacks Applied . | . . . . Relay Couplers Released . | . . . . Fabnet Peak Effective % . | . . . . Robots Rewired . | . . . . Allies Hacked . | . . . . Hacks Repelled . | . . . . Allies | -11 -10 -10 -9 -------- Run | Yrd Mat Sub Scr Total Allies 1 | . 1 . . Largest Group 1 | . 1 1 . Highest-Rated Group 10 | . 10 9 . Highest-Rated Ally 10 | . 10 9 . Total Orders . | . . . . Ally Attacks . | . . . . Total Damage . | . . . . Kills . | . . . . Allies Corrupted . | . . . . Allies Melted . | . . . . Intel | -11 -10 -10 -9 ------- Run | Yrd Mat Sub Scr Active Infowar (turns) 8411 | 82 2563 2503 3263 Seismic 8411 | 82 2563 2503 3263 Robot Analysis Total 11 | . 6 . 5 Derelict Logs Recovered 6 | . . 1 5 Drone Launches . | . . . . Drone Recoveries . | . . . . Exploration | -11 -10 -10 -9 ------------- Run | Yrd Mat Sub Scr Turns Passed 11109 | 284 2563 4876 3386 Spaces Moved 3732 | 129 880 1639 1084 Core 15 | 5 3 . 7 Treads 3717 | 124 877 1639 1077 Legs . | . . . . Wheels . | . . . . Hover . | . . . . Flight . | . . . . Fastest Speed 50 | 50 160 160 50 Average Speed 247 | 155 160 259 310 Slowest Speed 350 | 160 350 320 320 Overloaded Moves . | . . . . Propulsion Burnouts . | . . . . Robots Hopped . | . . . . Potential Cave-ins . | . . . . Cave-ins Triggered . | . . . . Exploration Rate (%) 65 | 8 98 75 80 Regions Visited 3 Branch Regions 2 Pre-discovered Areas 1 | . . 1 . Known Exits Taken 1 | . 1 . . Unknown Exits Taken 2 | 1 . 1 . Scrap Searched 9 | . . 2 7 Spaces Dug . | . . . . Terrain Destroyed . | . . . . Melee . | . . . . Projectile . | . . . . AOE . | . . . . Terrain Rammed 3 | . . . 3 Walls Destroyed . | . . . . Machines Disabled 1 | . . . 1 Actions | -11 -10 -10 -9 --------- Run | Yrd Mat Sub Scr Total 5323 | 164 1906 2149 1104 Wait 1347 | . 928 419 . Move 3729 | 128 879 1638 1084 Hop . | . . . . Pick Up 34 | 4 10 16 4 Fast Attach 14 | 7 6 . 1 Attach 4 | . . 4 . Detach . | . . . . Swap 16 | . 4 9 3 Drop 19 | . 7 3 9 Fire 149 | 25 64 60 . Melee . | . . . . Ram 3 | . . . 3 Kick . | . . . . Crush 8 | . 8 . . Escape Stasis . | . . . . Rewire . | . . . . Trap . | . . . . Miscellaneous . | . . . . Route ------- -11/Scrapyard -10/Materials (discovered 6 exits: [*Mat x3] / *Min x2 / *Sub) -10/Subcaves (discovered 3 exits: *Mat x2 / *Scr) -9/Scraptown (discovered 1 exit: [*Fac]) History --------- Turn | Location | Event 2 | -11/Scrapyard | Met Revision 17 95 | -11/Scrapyard | Discovered new exit (range 16) 285 | -11/Scrapyard | Entered Materials 305 | -10/Materials | Build established: Mutant 361 | -10/Materials | Discovered new exit (range 11) 534 | -10/Materials | Discovered new exit (range 5) 1752 | -10/Materials | Discovered new exit (range 12) 1869 | -10/Materials | Central database locked down 1910 | -10/Materials | Identified exit to Mines 1981 | -10/Materials | Repaired Lgt. Treads 2008 | -10/Materials | Repaired Lgt. Treads 2081 | -10/Materials | Learned 2 Mines zone layouts 2119 | -10/Materials | Learned location of 1 exit from Recycling 2148 | -10/Materials | Identified exit to Subcaves 2188 | -10/Materials | Learned location of 2 exits from Subcaves 2238 | -10/Materials | Learned 2 Materials zone layouts 2300 | -10/Materials | Learned Storage trap positions 2534 | -10/Materials | Discovered new exit (range 11) 2848 | -10/Materials | Entered Subcaves 2848 | -10/Subcaves | Accompanied by 1 ally 2849 | -10/Subcaves | Approached by a straggling Scientist 2849 | -10/Subcaves | Identified exit to Materials 3009 | -10/Subcaves | Shifting Twisted Machinery released Sub. Optics 3031 | -10/Subcaves | Shifting Twisted Machinery released Flamer 3206 | -10/Subcaves | Learned location of Zion (-6) 3206 | -10/Subcaves | Met a Zionite searching for "candidates" 3228 | -10/Subcaves | Shifting Twisted Machinery released Battle Rifle 3232 | -10/Subcaves | Shifting Twisted Machinery released Flamer 3522 | -10/Subcaves | Scientist uncovered a shortcut to Scraptown 4208 | -10/Subcaves | A Subdweller sparked back to life 4208 | -10/Subcaves | A Subdweller sparked back to life 4298 | -10/Subcaves | Found Prototype Energy Cannon 4908 | -10/Subcaves | Core integrity fell below 50% 6610 | -10/Subcaves | A swath of the cavern ceiling suddenly collapsed 7724 | -10/Subcaves | Entered Scraptown 8049 | -9/Scraptown | Visited UFD Registry 8049 | -9/Scraptown | Registered with UFD as "Plasmacircuit" 8260 | -9/Scraptown | Scanned Subdweller tech in exchange for log data 8269 | -9/Scraptown | Learned Research trap positions 8276 | -9/Scraptown | Learned Factory non-interactive machine intel 8279 | -9/Scraptown | Learned Research stockpile data 8548 | -9/Scraptown | Visited Derelict Rescue Squad 8573 | -9/Scraptown | Found DRS Beacon 8677 | -9/Scraptown | Visited Curators Association 8725 | -9/Scraptown | Visited Botcube Research 8741 | -9/Scraptown | Found Lrg. Botcube 8854 | -9/Scraptown | Visited Science Guys 8957 | -9/Scraptown | Visited Research Penetration Think Tank 9024 | -9/Scraptown | Visited Analyses Database 9085 | -9/Scraptown | Visited DA-N13 Charitable Foundation 9098 | -9/Scraptown | Found DCF Scrap (27 items) 9187 | -9/Scraptown | Visited Junk Repository 9261 | -9/Scraptown | Visited Scrap Suit Storage 9315 | -9/Scraptown | Visited Scrapoid Research Area 10096 | -9/Scraptown | Discovered new exit (range 11) 10189 | -9/Scraptown | Guru changed UFD alias to "Powerfunk" 11105 | -9/Scraptown | Attacked by Scraptown defenders 11107 | -9/Scraptown | Core integrity fell below 20% 11110 | -9/Scraptown | Destroyed by B4-7JF(E) with Gauss Rifle Last Messages --------------- pieces in our collection!" 11017_ Dropped Huge Storage Unit. 11054_ Acquired Lgt. Armor Plating. 11055_ Acquired 40 matter. 11100_ Dropped Ion Engine. 11101_ Dropped Lgt. Treads. 11102_ Dropped Lgt. Armor Plating. 11103_ Dropped Battle Rifle. 11103_ Dropped Battle Cannon. 11105_ Slammed into Machine. 11105_ Machine disabled. 11105_ ANNOUNCEMENT: Intruder alert! Defend Scraptown! 11105_ Destabilizing: Core damaged (-10). 11106_ Slammed into Machine. 11106_ Destabilizing: Core damaged (-10). 11107_ Slammed into Machine. 11107_ Destabilizing: System corrupted (+2). 11107_ Destabilizing: Core damaged (-7). 11110_ Machine disabled. Map ----- +----------------------------------------------------+ | ??#" !"#??????????# ##########??????????????? | | ??#"! !"#########??# #**=## #??????????????? | | ??#"! !"##=!#=!|#?*# #== ## #??????????????? | | ??#"! !"##*=# ! #]!# #*%[** % #??????????????? | | ???"! !"## # # # #!/[!*] #??????????????? | | ??## ??# # #!=[]= #??????????????? | | ??? ????# # #*!|[! #??????????????? | | ????# #?????##### ##### ##=#######??????????????? | | ##### ########### ##### ## ##########???????????? | | """"" """"""""""" """"" "" "## """"#???????????? | | =[! j"## """"#???????????? | | &!*!! "## " "#???????????? | | [[!!| "## ""#???????????? | | =![[[ "## "#???????????? | | =[[ X"#???????????? | | """"""""""""""""""""""" "## " "#???????????? | | """"""""""""""""""""""" "## """"#???????????? | | ### ################"" "#########???????????? | | ?? ??????????????#"" "##########??????????? | | ?? ??????????????#"" "## " """"#??????????? | | "" "??????????????#"" "## ""#??????????? | | ""? ?????????????###"" "## "#??????????? | | " ??????######## #"" "## ""#??????????? | | "? ??? E c ""#??????????? | | "" ??? E ## ""#??????????? | | " ??????####### #"" b@ "## """"""#??????????? | | "" ""??????????###"" "##"""""""#??????????? | | "" "" ????????????#"" "##########??????????? | | ????????????#" ]! "#???????????????????? | | ? ?????????????#" =*!"##############??????? | | ### ################""r =c"## "& """"""#??????? | | """"""""""""""""""""""" c"## "" """"""#??????? | | """"""""""""""""""""""" c "!"""#??????? | | r "## """ "#??????? | | "## "" X"#??????? | | xE"## "" "#??????? | | ## ""#??????? | | [ # " ""#??????? | | """"""" """"""""""" """""" ## "" """#??????? | | ####### ########### ###### ## """"" """#??????? | | ##" ##" "# ##" """""""""#??????? | | ##" """###"" ""## ##############??????? | | ## " ""#?#/" "[## #???????????????????? | | ##"" """#?#"" ""## #???????????????????? | | #?"" """"##" "# #???????????????????? | | #?###"#########"" ""## ############????????? | | #?????????????#]" "&## #????????? | | #?????????????#"" ""## ##????????? | | #?????????????" """ "# #????????? | | #??????????????## "!" ##?# #????????? | +----------------------------------------------------+ Best States ------------- Heat Dissipation 25 Energy Generation 10 Energy Capacity 250 Matter Stores 300 Matter Capacity 300 Sight Range 16 Terrain Scan Density 10 Armor Coverage 300 Evasion (%) 50 Recoil Reduction 2 Item Schematics ----------------- None Robot Schematics ------------------ None Fabricated ------------ Nothing Repaired ---------- Lgt. Treads | 19% | -10/Materials Lgt. Treads | 21% | -10/Materials Alien Tech Used ----------------- None Achievements -------------- None Challenges ------------ None Game ------ Seed CombatRiotTube Manual? 0 Play Time 00:22:29 Cumulative 207.6 hours Start 2025.09.16 @ 15:20:33 End 2025.09.16 @ 17:56:23 Sessions 2 Manual Loads 0 Difficulty Rogue Special Mode None Game No. 116 Rogue 116 Adventurer 0 Explorer 0 Win Type - Total 23 Types 10/1/8/1/0/1/1/1/0/0 Lore% 76 Gallery% 67 Achievement% 72 Wizard Run 0 Options --------- Layout 1 ASCII 0 Keyboard 0 Movement Arrows Keybinds 0 Fullscreen 2 Font 24/Tamsyn Map View 50x35 Zoom Use 0% Tactical HUD 1 Map Filters NONE Filters NONE Steam 1 RUN: 8da6e2bf-dedf-4360-9499-3a9cdbd4a437